bitfinex/quotes_BTCUSD_20241020
["timestamp","ask_amount","ask_price","bid_price","bid_amount"]
[1729457438674,9.72266992,68886.0,68885.0,1.10292815]
[1729457438945,9.72266992,68886.0,68885.0,1.12223779]
[1729457439175,9.72266992,68886.0,68885.0,1.20493779]
[1729457439884,9.47306992,68886.0,68885.0,1.21453779]
[1729457440149,9.47306992,68886.0,68885.0,1.21653779]
[1729457440372,9.47306992,68886.0,68885.0,1.23953779]
[1729457440632,9.27016992,68886.0,68885.0,1.23953779]
[1729457440841,9.27016992,68886.0,68885.0,1.23553779]
[1729457441781,9.27016992,68886.0,68885.0,1.23953779]
[1729457442024,9.27016992,68886.0,68885.0,1.21622815]
[1729457442271,9.14536992,68886.0,68885.0,1.23152962]
[1729457442482,9.14536992,68886.0,68885.0,1.23952962]
[1729457442738,9.14536992,68886.0,68885.0,1.23095457]
[1729457442958,9.14536992,68886.0,68885.0,1.23952197]
[1729457443200,9.14536992,68886.0,68885.0,1.23552197]
[1729457444066,9.14536992,68886.0,68885.0,1.23352197]
[1729457444279,9.14536992,68886.0,68885.0,1.22952197]
[1729457444539,9.02401018,68886.0,68885.0,1.22952197]
[1729457444745,7.97253543,68886.0,68885.0,1.15692197]
[1729457444978,7.97253543,68886.0,68885.0,1.08222197]
[1729457444979,7.85223543,68886.0,68885.0,1.08222197]
[1729457445193,7.85223543,68886.0,68885.0,1.07822197]
[1729457445662,7.85223543,68886.0,68885.0,1.08222197]
[1729457445935,7.85223543,68886.0,68885.0,1.07422197]
[1729457446201,7.85223543,68886.0,68885.0,1.08072799]
[1729457446432,7.85223543,68886.0,68885.0,1.08222197]
[1729457446433,7.53533835,68886.0,68885.0,1.08222197]
[1729457446667,7.53533835,68886.0,68885.0,1.08022197]
[1729457446891,7.53533835,68886.0,68885.0,1.08222197]
[1729457447383,7.53533835,68886.0,68885.0,1.08072799]
[1729457447606,7.53533835,68886.0,68885.0,1.06600157]
[1729457447818,7.53533835,68886.0,68885.0,1.08469654]
[1729457448069,7.53533835,68886.0,68885.0,1.08069654]
[1729457448309,7.52592785,68886.0,68885.0,1.18219052]
[1729457448517,7.52592785,68886.0,68885.0,1.17819052]
[1729457448763,7.52592785,68886.0,68885.0,1.18219052]
[1729457449655,7.52592785,68886.0,68885.0,1.18469654]
[1729457450131,7.52592785,68886.0,68885.0,1.20574277]
[1729457450587,7.30133912,68886.0,68885.0,1.20574277]
[1729457450998,6.4909801,68886.0,68885.0,1.26623757]
[1729457451308,6.41722154,68886.0,68885.0,1.21349461]
[1729457451755,6.35915554,68886.0,68885.0,1.21349461]
[1729457451967,6.17790879,68886.0,68885.0,1.21349461]
[1729457452391,6.17790879,68886.0,68885.0,1.19049461]
[1729457452392,6.17873679,68886.0,68885.0,1.19049461]
[1729457452617,6.14177525,68886.0,68885.0,1.19049461]
[1729457452839,6.08370925,68886.0,68885.0,1.18023675]
[1729457453057,5.99661025,68886.0,68885.0,1.16097438]
[1729457453266,5.99661025,68886.0,68885.0,1.1801725]
[1729457453533,5.99661025,68886.0,68885.0,1.22281698]
[1729457453993,5.99661025,68886.0,68885.0,1.24581698]
[1729457454453,5.99661025,68886.0,68885.0,1.2031725]
[1729457454666,5.99661025,68886.0,68885.0,1.24581698]
[1729457455515,5.99661025,68886.0,68885.0,1.2031725]
[1729457456366,5.99661025,68886.0,68885.0,1.22661886]
[1729457456587,5.99661025,68886.0,68885.0,1.23514576]
[1729457456797,5.99661025,68886.0,68885.0,1.24581701]
[1729457457855,5.99661025,68886.0,68885.0,1.18017253]
[1729457458738,5.99661025,68886.0,68885.0,1.17617253]
[1729457458977,5.99661025,68886.0,68885.0,1.17767253]
[1729457459893,5.99661025,68886.0,68885.0,1.17367253]
[1729457460324,5.99661025,68886.0,68885.0,1.16967851]
[1729457460556,5.99661025,68886.0,68885.0,1.12963228]
[1729457460799,5.99661025,68886.0,68885.0,1.11403228]
[1729457461037,5.99661025,68886.0,68885.0,1.02363228]
[1729457461256,5.99661025,68886.0,68885.0,1.02763228]
[1729457461477,5.99661025,68886.0,68885.0,1.03163228]
[1729457461686,5.99661025,68886.0,68885.0,1.02563228]
[1729457461918,5.99661025,68886.0,68885.0,1.02963228]
[1729457462773,5.99661025,68886.0,68885.0,1.02563228]
[1729457462988,5.99661025,68886.0,68885.0,1.01496779]
[1729457463204,5.99661025,68886.0,68885.0,1.01896779]
[1729457463429,5.99661025,68886.0,68885.0,1.02965721]
[1729457463651,5.99661025,68886.0,68885.0,1.02365721]
[1729457463890,5.99661025,68886.0,68885.0,1.02965721]
[1729457464112,5.99661025,68886.0,68885.0,1.05665721]
[1729457464354,5.99661025,68886.0,68885.0,1.14865721]
[1729457464816,5.99661025,68886.0,68885.0,1.15665721]
[1729457465038,5.99661025,68886.0,68885.0,1.19530169]
[1729457465234,5.99661025,68886.0,68885.0,1.15665721]
[1729457465492,5.99661025,68886.0,68885.0,1.15265721]
[1729457465712,5.97047824,68886.0,68885.0,1.15265721]
[1729457465963,5.97047824,68886.0,68885.0,1.15831321]
[1729457466271,5.97047824,68886.0,68885.0,1.14577357]
[1729457466436,5.97047824,68886.0,68885.0,1.15432202]
[1729457466687,5.76724724,68886.0,68885.0,1.15832202]
[1729457466899,5.76724724,68886.0,68885.0,1.20100859]
[1729457466900,5.68014824,68886.0,68885.0,1.20100859]
[1729457467356,5.48164421,68886.0,68885.0,1.15832202]
[1729457467588,5.48164421,68886.0,68885.0,1.15032202]
[1729457467805,5.42357821,68886.0,68885.0,1.15432202]
[1729457468042,5.33647921,68886.0,68885.0,1.22235188]
[1729457469408,5.33647921,68886.0,68885.0,1.22233742]
[1729457469644,5.33647921,68886.0,68885.0,1.22233741]
[1729457469886,5.24938021,68886.0,68885.0,1.15836333]
[1729457470116,5.24938021,68886.0,68885.0,1.22237916]
[1729457470338,5.24938021,68886.0,68885.0,1.15836333]
[1729457470555,5.24938021,68886.0,68885.0,1.21642133]
[1729457470987,5.24938021,68886.0,68885.0,1.30116163]
[1729457471216,5.24938021,68886.0,68885.0,1.30116201]
[1729457471432,5.24938021,68886.0,68885.0,1.23713588]
[1729457472295,5.24938021,68886.0,68885.0,1.30117854]
[1729457472537,5.24938021,68886.0,68885.0,1.23713588]
[1729457472962,5.24938021,68886.0,68885.0,1.22857267]
[1729457473179,5.24938021,68886.0,68885.0,1.2178567]
[1729457473444,5.24938021,68886.0,68885.0,1.22857984]
[1729457474375,5.24938021,68886.0,68885.0,1.27128979]
[1729457474590,5.24938021,68886.0,68885.0,1.2712967]
[1729457474804,5.24938021,68886.0,68885.0,1.22858514]
[1729457475027,5.24938021,68886.0,68885.0,1.27130119]
[1729457475248,5.24938021,68886.0,68885.0,1.22858514]
[1729457475935,5.24938021,68886.0,68885.0,1.14552714]
[1729457476772,5.24938021,68886.0,68885.0,1.14152714]
[1729457476990,5.24938021,68886.0,68885.0,1.13752714]
[1729457477218,5.48238021,68886.0,68885.0,1.01481259]
[1729457477429,5.48238021,68886.0,68885.0,1.00581259]
[1729457477675,5.48238021,68886.0,68885.0,1.00981259]
[1729457478130,5.48238021,68886.0,68885.0,1.00581259]
[1729457478617,5.48238021,68886.0,68885.0,1.00181259]
[1729457478842,5.48238021,68886.0,68885.0,1.00581259]
[1729457479025,5.45238021,68886.0,68885.0,1.00581259]
[1729457479291,5.45238021,68886.0,68885.0,1.00181259]
[1729457479507,5.45238021,68886.0,68885.0,1.00581259]
[1729457480184,5.45238021,68886.0,68885.0,1.01481259]
[1729457480390,5.45238021,68886.0,68885.0,1.00408415]
[1729457480631,5.45238021,68886.0,68885.0,1.01481132]
[1729457480900,5.45238021,68886.0,68885.0,1.01081132]
[1729457481119,5.45238021,68886.0,68885.0,1.02337832]
[1729457481619,5.45238021,68886.0,68885.0,1.02137832]
[1729457481620,5.30158021,68886.0,68885.0,1.02137832]
[1729457481831,5.21938021,68886.0,68885.0,1.15037832]
[1729457482056,5.21938021,68886.0,68885.0,1.24001659]
[1729457482273,5.21938021,68886.0,68885.0,1.26142615]
[1729457482518,5.21938021,68886.0,68885.0,1.25742615]
[1729457482947,5.21938021,68886.0,68885.0,1.26542615]
[1729457483176,5.21938021,68886.0,68885.0,1.26142615]
[1729457483392,5.21938021,68886.0,68885.0,1.15437832]
[1729457483607,5.21938021,68886.0,68885.0,1.15837832]
[1729457483858,5.21938021,68886.0,68885.0,1.13908415]
[1729457484097,5.21938021,68886.0,68885.0,1.15836884]
[1729457484546,5.21938021,68886.0,68885.0,1.14764904]
[1729457484757,5.21938021,68886.0,68885.0,1.15836857]
[1729457485899,5.21938021,68886.0,68885.0,1.17959519]
[1729457487296,5.21938021,68886.0,68885.0,1.17959627]
[1729457487531,5.21938021,68886.0,68885.0,1.22426328]
[1729457488008,5.21938021,68886.0,68885.0,1.23794702]
[1729457488441,5.21938021,68886.0,68885.0,1.23793317]
[1729457489101,5.16058183,68886.0,68885.0,1.23793317]
[1729457490045,5.16058183,68886.0,68885.0,1.35289373]
[1729457491745,5.16058183,68886.0,68885.0,1.22424934]
[1729457491979,5.16058183,68886.0,68885.0,1.35290464]
[1729457492187,5.16058183,68886.0,68885.0,1.17958233]
[1729457492402,5.16058183,68886.0,68885.0,1.22425252]
[1729457492621,5.16058183,68886.0,68885.0,1.17958233]
[1729457493716,5.16058183,68886.0,68885.0,1.17158233]
[1729457494126,5.16058183,68886.0,68885.0,1.175584]
[1729457494385,5.16058183,68886.0,68885.0,1.1670303]
[1729457494623,5.16058183,68886.0,68885.0,1.16486429]
[1729457494841,5.16058183,68886.0,68885.0,1.15631077]
[1729457495049,5.16058183,68886.0,68885.0,1.16886474]
[1729457495516,5.16058183,68886.0,68885.0,1.11863812]
[1729457495731,5.16058183,68886.0,68885.0,1.01463812]
[1729457495732,5.23898183,68886.0,68885.0,1.01463812]
[1729457495947,5.23898183,68886.0,68885.0,1.01863812]
[1729457496156,5.23898183,68886.0,68885.0,1.02263812]
[1729457496373,5.23898183,68886.0,68885.0,1.01863812]
[1729457496885,5.16058183,68886.0,68885.0,1.13144909]
[1729457497105,5.16058183,68886.0,68885.0,1.13763812]
[1729457497302,5.16058183,68886.0,68885.0,1.14163812]
[1729457497515,5.16058183,68886.0,68885.0,1.13763812]
[1729457497930,5.16058183,68886.0,68885.0,1.18231923]
[1729457498174,5.16058183,68886.0,68885.0,1.13763812]
[1729457498406,5.16058183,68886.0,68885.0,1.14163812]
[1729457499078,5.16058183,68886.0,68885.0,1.14563812]
[1729457499297,5.16058183,68886.0,68885.0,1.18832273]
[1729457499528,5.16058183,68886.0,68885.0,1.19032273]
[1729457499777,5.16058183,68886.0,68885.0,1.19232273]
[1729457499994,5.16058183,68886.0,68885.0,1.19032273]
[1729457500431,4.16058183,68886.0,68885.0,1.14563812]
[1729457501086,4.16058183,68886.0,68885.0,1.14564088]
[1729457501926,4.16058183,68886.0,68885.0,1.14164088]
[1729457502129,4.16058183,68886.0,68885.0,1.14364088]
[1729457502570,4.16058183,68886.0,68885.0,1.14764088]
[1729457502770,4.16058183,68886.0,68885.0,1.14364088]
[1729457502989,4.16058183,68886.0,68885.0,1.16080671]
[1729457503211,4.16058183,68886.0,68885.0,1.16480671]
[1729457504570,4.16058183,68886.0,68885.0,1.16480908]
[1729457507806,4.16058183,68886.0,68885.0,1.16080908]
[1729457508226,4.16058183,68886.0,68885.0,1.16480908]
[1729457508468,4.16058183,68886.0,68885.0,1.16080908]
[1729457508908,4.16058183,68886.0,68885.0,1.16480908]
[1729457509346,4.16058183,68886.0,68885.0,1.25063254]
[1729457509790,4.16058183,68886.0,68885.0,1.16480908]
[1729457510022,4.16058183,68886.0,68885.0,1.18552028]
[1729457510490,4.16058183,68886.0,68885.0,1.16480908]
[1729457511428,4.16058183,68886.0,68885.0,1.15624998]
[1729457511678,4.16058183,68886.0,68885.0,1.19232914]
[1729457511889,4.0535163,68886.0,68885.0,1.14762133]
[1729457512352,4.0535163,68886.0,68885.0,1.14362133]
[1729457512977,4.0535163,68886.0,68885.0,1.14762133]
[1729457513196,4.0535163,68886.0,68885.0,1.14362133]
[1729457514046,4.0535163,68886.0,68885.0,1.13962133]
[1729457514264,4.0535163,68886.0,68885.0,1.1843407]
[1729457514489,4.0535163,68886.0,68885.0,1.1883407]
[1729457514760,4.0535163,68886.0,68885.0,1.14362133]
[1729457515000,4.0535163,68886.0,68885.0,1.14761628]
[1729457515218,4.0535163,68886.0,68885.0,1.19234174]
[1729457519246,4.0535163,68886.0,68885.0,1.19034174]
[1729457519477,4.0535163,68886.0,68885.0,1.19234174]
[1729457519700,4.0535163,68886.0,68885.0,1.21340621]
[1729457520932,4.0535163,68886.0,68885.0,1.02261628]
[1729457521173,4.2932163,68886.0,68885.0,1.01861628]
[1729457521396,4.2932163,68886.0,68885.0,1.01408415]
[1729457521846,4.2932163,68886.0,68885.0,1.01008415]
[1729457522283,4.2932163,68886.0,68885.0,1.11861674]
[1729457522779,4.2932163,68886.0,68885.0,1.13293653]
[1729457523007,4.2932163,68886.0,68885.0,1.11461674]
[1729457523223,4.2932163,68886.0,68885.0,1.13226833]
[1729457523451,4.2932163,68886.0,68885.0,1.13626833]
[1729457523744,4.2932163,68886.0,68885.0,1.24356192]
[1729457523982,4.2932163,68886.0,68885.0,1.13626833]
[1729457524191,4.2932163,68886.0,68885.0,1.13226557]
[1729457524405,4.2932163,68886.0,68885.0,1.23557094]
[1729457524843,4.2932163,68886.0,68885.0,1.23957094]
[1729457525062,4.2932163,68886.0,68885.0,1.13226557]
[1729457525483,4.2932163,68886.0,68885.0,1.13626557]
[1729457525685,4.2932163,68886.0,68885.0,1.13226557]
[1729457525866,4.2932163,68886.0,68885.0,1.12826557]
[1729457526074,4.2932163,68886.0,68885.0,1.23958667]
[1729457526279,4.2932163,68886.0,68885.0,1.13626557]
[1729457526491,4.2932163,68886.0,68885.0,1.13226557]
[1729457526903,4.1300163,68886.0,68885.0,1.15926557]
[1729457527151,4.0535163,68886.0,68885.0,1.20599694]
[1729457527607,4.0535163,68886.0,68885.0,1.20598594]
[1729457528053,4.0535163,68886.0,68885.0,1.20198594]
[1729457528255,4.0535163,68886.0,68885.0,1.20598594]
[1729457528493,4.0535163,68886.0,68885.0,1.20198594]
[1729457529578,4.0535163,68886.0,68885.0,1.20598594]
[1729457531026,4.0535163,68886.0,68885.0,1.18381552]
[1729457531231,4.0535163,68886.0,68885.0,1.20598316]
[1729457531865,4.1329163,68886.0,68885.0,1.20598316]
[1729457532080,4.1329163,68886.0,68885.0,1.18098316]
[1729457532277,4.1329163,68886.0,68885.0,1.16734131]
[1729457532633,4.2890163,68886.0,68885.0,1.00860994]
[1729457532871,4.2890163,68886.0,68885.0,1.00460994]
[1729457533083,4.2890163,68886.0,68885.0,1.09452452]
[1729457533317,4.2890163,68886.0,68885.0,1.09052452]
[1729457533517,4.2890163,68886.0,68885.0,1.00460994]
[1729457534162,4.2890163,68886.0,68885.0,1.00860994]
[1729457534377,4.2890163,68886.0,68885.0,1.00008415]
[1729457534603,4.2890163,68886.0,68885.0,1.00861143]
[1729457535562,4.2890163,68886.0,68885.0,1.03161143]
[1729457535763,4.2890163,68886.0,68885.0,1.10003203]
[1729457536025,4.2890163,68886.0,68885.0,1.07703203]
[1729457536143,4.2890163,68886.0,68885.0,1.01261143]
[1729457537005,4.2890163,68886.0,68885.0,1.00761143]
[1729457537638,4.2890163,68886.0,68885.0,0.85444243]
[1729457537856,4.2890163,68886.0,68885.0,0.85844243]
[1729457538056,4.2890163,68886.0,68885.0,1.00761143]
[1729457539173,4.2890163,68886.0,68885.0,1.01261143]
[1729457540781,4.2890163,68886.0,68885.0,1.00861143]
[1729457541007,4.2890163,68886.0,68885.0,1.01261143]
[1729457541218,4.2890163,68886.0,68885.0,1.00861143]
[1729457541438,4.2890163,68886.0,68885.0,1.00461143]
[1729457541662,4.2890163,68886.0,68885.0,1.0036028]
[1729457541903,4.2890163,68886.0,68885.0,1.0076028]
[1729457542132,4.2890163,68886.0,68885.0,1.0126028]
[1729457542337,4.2887967,68886.0,68885.0,1.0086028]
[1729457542559,4.2887967,68886.0,68885.0,1.0046028]
[1729457542775,4.2887967,68886.0,68885.0,1.0086028]
[1729457543675,4.2887967,68886.0,68885.0,1.0036028]
[1729457544105,4.2887967,68886.0,68885.0,1.0076028]
[1729457544581,4.2887967,68886.0,68885.0,0.8624338]
[1729457544999,4.2887967,68886.0,68885.0,0.61235888]
[1729457545000,4.4339637,68886.0,68885.0,0.61235888]
[1729457545214,4.4339637,68886.0,68885.0,0.6230859]
[1729457545871,4.4339637,68886.0,68885.0,0.6190859]
[1729457546098,4.4339637,68886.0,68885.0,0.60836199]
[1729457546308,4.4339637,68886.0,68885.0,0.60163497]
[1729457547180,4.4339637,68886.0,68885.0,0.58911515]
[1729457548016,4.4339637,68886.0,68885.0,0.59763168]
[1729457548236,4.4339637,68886.0,68885.0,0.59311515]
[1729457550029,4.4339637,68886.0,68885.0,0.58811515]
[1729457550247,4.4343637,68886.0,68885.0,0.51001515]
[1729457554761,4.4358607,68886.0,68885.0,0.51001515]
[1729457556074,4.4343637,68886.0,68885.0,0.50851815]
[1729457564018,4.4339637,68886.0,68885.0,0.50851815]
[1729457567363,4.5343637,68886.0,68885.0,0.50851815]
[1729457567572,4.68332285,68886.0,68885.0,0.50851815]
[1729457567792,4.68332285,68886.0,68885.0,0.33541815]
[1729457568413,4.68332285,68886.0,68885.0,0.33141815]
[1729457568669,4.68332285,68886.0,68885.0,0.32741815]
[1729457569507,4.68532285,68886.0,68885.0,0.32741815]
[1729457569965,4.834282,68886.0,68885.0,0.32741815]
[1729457570611,4.68332285,68886.0,68885.0,0.32741815]
[1729457572191,4.68532285,68886.0,68885.0,0.32741815]
[1729457572399,4.68332285,68886.0,68885.0,0.32741815]
[1729457587496,4.3782637,68886.0,68885.0,0.32741815]
[1729457587731,4.1984637,68886.0,68885.0,0.32741815]
[1729457587932,4.1984637,68886.0,68885.0,0.33596265]
[1729457588805,4.1984637,68886.0,68885.0,0.34672027]
[1729457589268,4.1984637,68886.0,68885.0,0.35072027]
[1729457590114,4.1984637,68886.0,68885.0,0.35071865]
[1729457590738,4.1984637,68886.0,68885.0,0.35471865]
[1729457592253,4.1984637,68886.0,68885.0,0.34396103]
[1729457592923,4.1984637,68886.0,68885.0,0.33996103]
[1729457593372,4.1984637,68886.0,68885.0,0.34296103]
[1729457593836,4.1984637,68886.0,68885.0,0.33995824]
[1729457594049,4.1984637,68886.0,68885.0,0.33595824]
[1729457594299,4.1984637,68886.0,68885.0,0.33995824]
[1729457594518,4.1984637,68886.0,68885.0,0.33595824]
[1729457594722,4.1984637,68886.0,68885.0,0.33995824]
[1729457594945,4.1984637,68886.0,68885.0,0.35471152]
[1729457595166,4.1984637,68886.0,68885.0,0.35071152]
[1729457595388,4.1984637,68886.0,68885.0,0.34395824]
[1729457595597,4.1984637,68886.0,68885.0,0.33995824]
[1729457595803,4.1984637,68886.0,68885.0,0.35070995]
[1729457596011,4.1984637,68886.0,68885.0,0.33595824]
[1729457596436,4.1984637,68886.0,68885.0,0.33995824]
[1729457597093,4.1984637,68886.0,68885.0,0.33995656]
[1729457597326,4.1984637,68886.0,68885.0,0.33595656]
[1729457597750,4.1984637,68886.0,68885.0,0.33695656]
[1729457598398,4.1984637,68886.0,68885.0,0.32841815]
[1729457599366,4.1984637,68886.0,68885.0,0.33695613]
[1729457599590,4.1984637,68886.0,68885.0,0.32841815]
[1729457600467,4.1984637,68886.0,68885.0,0.33695658]
[1729457602229,4.1984637,68886.0,68885.0,0.32841815]
[1729457602437,4.1984637,68886.0,68885.0,0.33695786]
[1729457602881,4.0532967,68886.0,68885.0,0.49787964]
[1729457603104,4.0532967,68886.0,68885.0,0.66050087]
[1729457603338,4.0532967,68886.0,68885.0,0.74290087]
[1729457603552,4.0532967,68886.0,68885.0,0.75150087]
[1729457603762,4.0532967,68886.0,68885.0,0.77670382]
[1729457603969,4.0532967,68886.0,68885.0,0.77270382]
[1729457604470,4.0532967,68886.0,68885.0,0.77669292]
[1729457604705,4.0532967,68886.0,68885.0,0.75548997]
[1729457604921,4.0532967,68886.0,68885.0,0.75948997]
[1729457605349,4.0532967,68886.0,68885.0,0.75548997]
[1729457605781,4.0532967,68886.0,68885.0,0.75948997]
[1729457606225,4.0532967,68886.0,68885.0,0.75148997]
[1729457606438,4.0532967,68886.0,68885.0,0.75948997]
[1729457606888,4.0532967,68886.0,68885.0,0.75548997]
[1729457607348,4.0532967,68886.0,68885.0,0.75948997]
[1729457607768,4.0532967,68886.0,68885.0,0.75947873]
[1729457609294,4.0532967,68886.0,68885.0,0.74582257]
[1729457609529,4.0532967,68886.0,68885.0,0.51825357]
[1729457609775,4.1984637,68886.0,68885.0,0.36529442]
[1729457609976,4.1984637,68886.0,68885.0,0.35169442]
[1729457609977,4.19631234,68886.0,68885.0,0.35169442]
[1729457610194,4.19631234,68886.0,68885.0,0.34495288]
[1729457610875,4.19631234,68886.0,68885.0,0.34895288]
[1729457611119,4.19631234,68886.0,68885.0,0.33641815]
[1729457611318,4.19631234,68886.0,68885.0,0.34494425]
[1729457611742,4.19631234,68886.0,68885.0,0.34094425]
[1729457612170,4.19631234,68886.0,68885.0,0.34494425]
[1729457612424,4.19631234,68886.0,68885.0,0.34894425]
[1729457612648,4.19631234,68886.0,68885.0,0.33994425]
[1729457613132,4.19631234,68886.0,68885.0,0.34394425]
[1729457613572,4.19631234,68886.0,68885.0,0.33994425]
[1729457614000,4.19631234,68886.0,68885.0,0.34394425]
[1729457614429,4.19631234,68886.0,68885.0,0.35468579]
[1729457614879,4.19631234,68886.0,68885.0,0.35469076]
[1729457615083,4.19631234,68886.0,68885.0,0.35069076]
[1729457615289,4.19631234,68886.0,68885.0,0.33994922]
[1729457615504,4.19631234,68886.0,68885.0,0.34394922]
[1729457615710,4.19631234,68886.0,68885.0,0.34616835]
[1729457616319,4.19631234,68886.0,68885.0,0.35692038]
[1729457616527,4.05114534,68886.0,68885.0,0.35692038]
[1729457616957,4.05114534,68886.0,68885.0,0.36192038]
[1729457617163,4.05114534,68886.0,68885.0,0.35792038]
[1729457617373,4.05114534,68886.0,68885.0,0.50308938]
[1729457617589,4.05114534,68886.0,68885.0,0.83464853]
[1729457617797,4.05114534,68886.0,68885.0,0.83864853]
[1729457618004,4.05114534,68886.0,68885.0,0.91992922]
[1729457618221,4.05114534,68886.0,68885.0,0.96087608]
[1729457618436,4.05114534,68886.0,68885.0,0.96687608]
[1729457618673,4.05114534,68886.0,68885.0,0.9153965]
[1729457618894,4.05114534,68886.0,68885.0,0.9113965]
[1729457619109,4.05114534,68886.0,68885.0,0.9053965]
[1729457619333,4.05114534,68886.0,68885.0,0.94133847]
[1729457619565,4.05114534,68886.0,68885.0,0.92658827]
[1729457620043,4.05114534,68886.0,68885.0,0.93058827]
[1729457621583,4.05114534,68886.0,68885.0,0.95275811]
[1729457621799,4.05114534,68886.0,68885.0,0.93058827]
[1729457622014,4.05114534,68886.0,68885.0,0.95275812]
[1729457622440,4.05114534,68886.0,68885.0,0.95475812]
[1729457623080,4.05114534,68886.0,68885.0,0.95275812]
[1729457625453,4.05114534,68886.0,68885.0,0.95271706]
[1729457626149,4.05114534,68886.0,68885.0,0.95471706]
[1729457626369,4.05114534,68886.0,68885.0,0.93554125]
[1729457627011,4.05114534,68886.0,68885.0,0.95271706]
[1729457627229,4.05114534,68886.0,68885.0,0.95471706]
[1729457627894,4.05114534,68886.0,68885.0,0.95271706]
[1729457628101,4.05114534,68886.0,68885.0,0.95471706]
[1729457628778,4.05114534,68886.0,68885.0,0.93255699]
[1729457628990,4.05114534,68886.0,68885.0,0.95471432]
[1729457630505,4.05114534,68886.0,68885.0,0.95071432]
[1729457630723,4.05114534,68886.0,68885.0,0.95471432]
[1729457630967,4.05114534,68886.0,68885.0,0.95271432]
[1729457631171,4.05114534,68886.0,68885.0,0.94871432]
[1729457631373,4.05114534,68886.0,68885.0,0.94471432]
[1729457631587,4.05114534,68886.0,68885.0,0.95271432]
[1729457632422,4.05114534,68886.0,68885.0,0.8986463]
[1729457632680,4.05114534,68886.0,68885.0,0.95275046]
[1729457633733,4.05114534,68886.0,68885.0,0.94875046]
[1729457634153,4.05114534,68886.0,68885.0,0.95275038]
[1729457635927,4.05114534,68886.0,68885.0,0.92482086]
[1729457636382,4.05114534,68886.0,68885.0,0.9440069]
[1729457636611,4.05114534,68886.0,68885.0,0.95474817]
[1729457637082,4.05114534,68886.0,68885.0,0.97774817]
[1729457637301,4.05114534,68886.0,68885.0,1.02064778]
[1729457637749,4.05114534,68886.0,68885.0,1.01664778]
[1729457638196,4.05114534,68886.0,68885.0,0.97374817]
[1729457638845,4.05114534,68886.0,68885.0,0.97774817]
[1729457639066,4.05114534,68886.0,68885.0,1.02066807]
[1729457639951,4.05114534,68886.0,68885.0,1.0206663]
[1729457640175,4.05114534,68886.0,68885.0,0.9777464]
[1729457640409,4.05114534,68886.0,68885.0,1.0378495]
[1729457640614,4.05114534,68886.0,68885.0,0.9949296]
[1729457640836,4.05114534,68886.0,68885.0,0.94017104]
[1729457641069,4.05114534,68886.0,68885.0,0.875069]
[1729457641304,4.05114534,68886.0,68885.0,0.89324314]
[1729457641543,4.05114534,68886.0,68885.0,0.93217101]
[1729457641767,4.05114534,68886.0,68885.0,0.89324314]
[1729457641997,4.05114534,68886.0,68885.0,0.89724314]
[1729457642231,4.05114534,68886.0,68885.0,0.87850933]
[1729457642434,4.05114534,68886.0,68885.0,0.89325238]
[1729457643951,4.05114534,68886.0,68885.0,0.89725238]
[1729457644390,4.05114534,68886.0,68885.0,0.91158622]
[1729457644610,4.05114534,68886.0,68885.0,0.89725238]
[1729457645018,4.05114534,68886.0,68885.0,0.94019577]
[1729457645274,4.05114534,68886.0,68885.0,0.94019576]
[1729457645483,4.05114534,68886.0,68885.0,0.89725238]
[1729457645996,4.05114534,68886.0,68885.0,0.60639224]
[1729457646201,4.05114534,68886.0,68885.0,0.54908338]
[1729457647049,4.05114534,68886.0,68885.0,0.69025238]
[1729457647501,4.05114534,68886.0,68885.0,0.38652423]
[1729457647708,4.29844534,68886.0,68885.0,0.38652423]
[1729457647922,4.29844534,68886.0,68885.0,0.54129323]
[1729457648139,4.05114534,68886.0,68885.0,0.54129323]
[1729457648367,4.05114534,68886.0,68885.0,0.53729323]
[1729457648585,4.05114534,68886.0,68885.0,0.54129323]
[1729457648812,4.05114534,68886.0,68885.0,0.69025238]
[1729457649030,4.05114534,68886.0,68885.0,0.67207824]
[1729457649238,4.05114534,68886.0,68885.0,0.69435023]
[1729457649481,4.05114534,68886.0,68885.0,0.69035023]
[1729457649717,4.05114534,68886.0,68885.0,0.67312779]
[1729457650145,4.05114534,68886.0,68885.0,0.66912779]
[1729457650423,4.05114534,68886.0,68885.0,0.67312779]
[1729457650636,4.05114534,68886.0,68885.0,0.67712779]
[1729457650851,4.05114534,68886.0,68885.0,0.66912779]
[1729457651278,4.05114534,68886.0,68885.0,0.67712779]
[1729457653546,4.05114534,68886.0,68885.0,0.67312779]
[1729457653754,4.05114534,68886.0,68885.0,0.66912779]
[1729457653976,4.05114534,68886.0,68885.0,0.67312779]
[1729457654214,4.05114534,68886.0,68885.0,0.67712779]
[1729457654414,4.05114534,68886.0,68885.0,0.66912779]
[1729457654863,4.05114534,68886.0,68885.0,0.67712779]
[1729457655753,4.05114534,68886.0,68885.0,0.52816864]
[1729457655983,4.05114534,68886.0,68885.0,0.50595085]
[1729457656214,4.05114534,68886.0,68885.0,0.52816315]
[1729457656438,4.05114534,68886.0,68885.0,0.52416315]
[1729457656659,4.05114534,68886.0,68885.0,0.52816315]
[1729457656902,4.05114534,68886.0,68885.0,0.52416315]
[1729457657326,4.05114534,68886.0,68885.0,0.52816315]
[1729457657555,4.05114534,68886.0,68885.0,0.52416315]
[1729457657992,4.05114534,68886.0,68885.0,0.52816315]
[1729457659294,4.05114534,68886.0,68885.0,0.52416315]
[1729457659520,4.05114534,68886.0,68885.0,0.52816315]
[1729457659727,4.05114534,68886.0,68885.0,0.52416315]
[1729457660142,4.05114534,68886.0,68885.0,0.52816315]
[1729457660353,4.05114534,68886.0,68885.0,0.52016315]
[1729457660833,4.05114534,68886.0,68885.0,0.52816315]
[1729457661474,4.05114534,68886.0,68885.0,0.52416315]
[1729457661911,4.05114534,68886.0,68885.0,0.52816315]
[1729457662334,4.05114534,68886.0,68885.0,0.52416315]
[1729457662551,4.05114534,68886.0,68885.0,0.52816315]
[1729457662973,4.05114534,68886.0,68885.0,0.49118715]
[1729457663187,4.05114534,68886.0,68885.0,0.52015153]
[1729457663422,4.05114534,68886.0,68885.0,0.52415153]
[1729457664062,4.05114534,68886.0,68885.0,0.52815153]
[1729457664948,4.05114534,68886.0,68885.0,0.51855153]
[1729457665158,4.05114534,68886.0,68885.0,0.52815153]
[1729457665362,4.06114534,68886.0,68885.0,0.52815153]
[1729457666443,4.06114534,68886.0,68885.0,0.51739292]
[1729457666647,4.06114534,68886.0,68885.0,0.52815096]
[1729457667067,4.06114534,68886.0,68885.0,0.51855096]
[1729457667485,4.13924534,68886.0,68885.0,0.52815096]
[1729457669815,4.13924534,68886.0,68885.0,0.51961051]
[1729457670031,4.13924534,68886.0,68885.0,0.52816084]
[1729457670478,4.13924534,68886.0,68885.0,0.36839184]
[1729457670688,4.45011234,68886.0,68885.0,0.36839184]
[1729457671395,4.45011234,68886.0,68885.0,0.36439184]
[1729457671834,4.45011234,68886.0,68885.0,0.36839184]
[1729457672277,4.45011234,68886.0,68885.0,0.36039184]
[1729457672701,4.45011234,68886.0,68885.0,0.36439184]
[1729457672916,4.45011234,68886.0,68885.0,0.36039184]
[1729457673134,4.45011234,68886.0,68885.0,0.36839184]
[1729457673350,4.45011234,68886.0,68885.0,0.33541815]
[1729457673570,4.45011234,68886.0,68885.0,0.35473608]